Workbook

Sheet EPI
A1: MINISTÉRIO DO DESENVOLVIMENTO REGIONAL COMPANHIA DE DESENVOLVIMENTO DOS VALES DO SÃO FRANISCO E DO PARNAÍBA 4ª SUPERINTENDÊNCIA REGIONAL
A2: PLANILHA - COTAÇÕES
A3: EQUIPAMENTO DE PROTEÇÃO INDIVIDUAL
A5: DESCRIÇÃO | C5: QUANT | D5: FREQUÊNCIA | E5: UNIDADE | F5: EMPRESA 1 VALOR UNIT (R$)* | G5: EMPRESA 2 VALOR UNIT (R$)* | H5: EMPRESA 3 VALOR UNIT (R$)* | I5: MÉDIA (R$) | J5: VALOR ANUAL (R$) | K5: VALOR ANUAL (R$)
A6: Luvas de Borracha, cano longo | C6: 8 | D6: Mensal | E6: par | F6: 13.7 | G6: 11.11 | H6: 18.6 | I6: =(F6+G6+H6)/3 -> 14.47 | J6: =C6*I6*12 -> 1389.12 | K6: =I6*C6 -> 115.76 | L6: =I6*2 -> 28.94
A7: Luva de Latex | C7: 16 | D7: Mensal | E7: par | F7: =65.9/100 -> 0.659 | G7: =23.9/100 -> 0.239 | H7: =29/100 -> 0.29 | I7: =(F7+G7+H7)/3 -> 0.396 | J7: =C7*I7*12 -> 76.032 | K7: =I7*C7 -> 6.336 | L7: =I7*4 -> 1.584
A8: Luva de Raspa, cano longo | C8: 16 | D8: Anual | E8: par | F8: 28.89 | G8: 21.69 | H8: 19.92 | I8: 23.5 | J8: =C8*I8 -> 376 | K8: =(I8*C8)/12 -> 31.33333333
A9: Luva de Vaqueta mista | C9: 12 | D9: Anual | E9: par | F9: 12.93 | G9: 16.9 | H9: 12.9 | I9: 14.24333333 | J9: =C9*I9 -> 170.92 | K9: =(I9*C9)/12 -> 14.24333333
A10: Luva para lavar carro | C10: 1 | D10: Mensal | E10: par | F10: 8.99 | G10: 14.43 | H10: 10.99 | I10: 11.47 | J10: =C10*I10*12 -> 137.64 | K10: 11.47
A11: Luva Térmica emborrachada | C11: 2 | D11: Anual | E11: par | F11: 17.2 | G11: 19.35 | H11: 15.42 | I11: 17.32333333 | J11: =C11*I11 -> 34.64666667 | K11: =(I11*C11)/12 -> 2.887222222
A12: Máscara descartável PFF2, modelo dobrável, com filtro | C12: 8 | D12: Mensal | E12: un | F12: 3.9 | G12: 1.45 | H12: 3.39 | I12: 2.913333333 | J12: =C12*I12*12 -> 279.68 | K12: 23.30666667
A13: Capacete de segurança para uso na indústria, classe B, tipo II com suspensão plástica | C13: 2 | D13: Anual | E13: un | F13: 15.58 | G13: 14.9 | H13: 14.99 | I13: 15.15666667 | J13: =C13*I13 -> 30.31333333 | K13: =(I13*C13)/12 -> 2.526111111
A14: Óculos de proteção | C14: 10 | D14: Anual | E14: un | F14: 4.69 | G14: 2.99 | H14: 9.99 | I14: 5.89 | J14: =C14*I14 -> 58.9 | K14: =(I14*C14)/12 -> 4.908333333
A15: Calçado ocupacional isolante elétrico de uso profissional tipo botina | C15: 10 | D15: Semenstral | E15: par | F15: 64.07 | G15: 70.8 | H15: 68.72 | I15: 67.86333333 | J15: =C15*I15*2 -> 1357.266667 | K15: =(I15*2)/12 -> 11.31055556
A16: Calçado ocupacional de uso profissional, tipo bota PVC cano longo, na cor preta, impermeável | C16: 5 | D16: Anual | E16: par | F16: 46.9 | G16: 56.88 | H16: 56.9 | I16: 53.56 | J16: =C16*I16 -> 267.8 | K16: =(I16*C16)/12 -> 22.31666667 | L16: =I16/12 -> 4.463333333
A17: Luva de segurança confeccionada em náilon preto com banho nitrílico preto na palma, face palmar dos dedos e ponta dos dedos, punho elástico | C17: 2 | D17: Mensal | E17: par | F17: 3.79 | G17: 3.75 | H17: 7.69 | I17: 5.076666667 | J17: =C17*I17*12 -> 121.84 | K17: =I17*C17 -> 10.15333333
A18: Protetor Facial para roçagem | C18: 4 | D18: Anual | E18: un | F18: 35.9 | G18: 48.66 | H18: 33.84 | I18: 39.46666667 | J18: =C18*I18 -> 157.8666667 | K18: =(I18*C18)/12 -> 13.15555556
A19: Avental de raspa | C19: 4 | D19: Anual | E19: un | F19: 45.71 | G19: 29.9 | H19: 33.19 | I19: 36.26666667 | J19: =C19*I19 -> 145.0666667 | K19: =(I19*C19)/12 -> 12.08888889
A20: Capa de chuva | C20: 11 | D20: Anual | E20: un | F20: 21.19 | G20: 23.9 | H20: 29.99 | I20: 25.02666667 | J20: 275.2933333 | K20: 22.94111111
A21: Protetor solar fator 30 FPS de 120ml | C21: 6 | D21: Anual | E21: un | F21: 39 | G21: 15.5 | H21: 15.79 | I21: 23.43 | J21: 140.58 | K21: 11.715
A22: VALOR TOTAL ANUAL (R$) | J22: =SUM(J6:J21) -> 5018.965333
A23: * As Empresas 1, 2 e 3 serão respectivamente aquelas apresentadas na pesquisa de preço.

Sheet Uniforme
A1: MINISTÉRIO DO DESENVOLVIMENTO REGIONAL COMPANHIA DE DESENVOLVIMENTO DOS VALES DO SÃO FRANISCO E DO PARNAÍBA 4ª SUPERINTENDÊNCIA REGIONAL
A3: PLANILHA - COTAÇÕES
A4: UNIFORMES
A5: DESCRIÇÃO | C5: QUANT | D5: Casa das Fardas | E5: Point das Fardas | F5: Ideal Confec | G5: Preço Médio | H5: TOTAL ANUAL
A6: Camiseta com gola simples, de mangas curtas, sem abotoamento, com logomarca da empresa | C6: 32 | D6: 58 | E6: 23 | F6: 35 | G6: =(D6+E6+F6)/3 -> 38.66666667 | H6: =G6*C6 -> 1237.333333
A7: Camiseta com gola simples, de mangas longas, proteção UV 50, sem abotoamento, com logo marca da empresa; | C7: 16 | D7: 87 | E7: 55 | F7: 85 | G7: =(D7+E7+F7)/3 -> 75.66666667 | H7: =G7*C7 -> 1210.666667
A8: Calça comprida com elástico e cordão, em tecido brim; | C8: 32 | D8: 119 | E8: 59 | F8: 75 | G8: =(D8+E8+F8)/3 -> 84.33333333 | H8: 2698.666667
A9: Meia em algodão, tipo média. | C9: 64 | D9: 18 | G9: =(D9+E9+F9) -> 18 | H9: 1152
A10: Botas, cano curto, solado antideslizante e antiderrapante, para atividades com água, hidro-repelente, com sistema de elástico, antibactérias, cor preto; | C10: 16 | D10: 131 | G10: =(D10+E10+F10) -> 131 | H10: 2096
A11: Cinto em couro, modelo social, regulável; | C11: 2 | D11: 33 | G11: =(D11+E11+F11) -> 33 | H11: 66
A12: Calça comprida social, em tecido Oxford com zíper, presilha para cinto, cor preta. | C12: 2 | D12: 131 | E12: 65 | F12: 85 | G12: =(D12+E12+F12)/3 -> 93.66666667 | H12: 187.3333333
A13: Camisa social, mangas curtas ou manga 3/4, contendo o emblema da Contratada bordado no lado superior esquerdo ou direito. | C13: 8 | D13: 104 | E13: 79 | F13: 85 | G13: =(D13+E13+F13)/3 -> 89.33333333 | H13: 714.6666667
A14: Sapato modelo social, de boa qualidade, em couro, na cor preta, solado antiderrapante. | C14: 3 | D14: 108 | G14: =(D14+E14+F14) -> 108 | H14: 324
A15: Meia social em tecido liso, 100% algodão, na cor preta | C15: 12 | D15: Shein 32,90 | E15: Mercado Livre 29,18 | F15: Amazon 45,00 | G15: =(32.9+29.18+45)/3 -> 35.69333333 | H15: 428.32
A16: Touca de filó com aba, cor preta, para uso dentro das copas. | C16: 4 | D16: Mercado Livre 6,90 | E16: Shopee 6,04 | F16: Ferreira Costa 7,45 | G16: =(6.9+6.04+7.45)/3 -> 6.796666667 | H16: 27.18666667
A17: Calça comprida tipo social, com zíper, na cor preta; | C17: 8 | E17: 65 | G17: =(D17+E17+F17) -> 65 | H17: 520
A18: Camisa social, mangas curtas, dois bolsos nas laterais, contendo o emblema da Contratada bordado no lado superior esquerdo ou direito. | C18: 4 | D18: 139 | E18: 70 | F18: 85 | G18: =(D18+E18+F18)/3 -> 98 | H18: 392
A19: Saia tipo esporte fino, ambos com zíper na parte de trás, na cor preta, na altura do joelho, contendo o emblema da Contratada bordado no lado superior esquerdo ou direito. | C19: 8 | D19: 104 | F19: 80 | G19: =(D19+E19+F19)/2 -> 92 | H19: 736
A20: Blazer na cor preta, em tecido tipo microfibra, forrado internamente | C20: 2 | D20: 153 | F20: 190 | G20: =(D20+E20+F20)/2 -> 171.5 | H20: 343
A21: Avental em Oxford ou tergal, branco, com amarras dos lados. | C21: 2 | D21: 99 | E21: 19 | F21: 50 | G21: =(D21+E21+F21)/3 -> 56 | H21: 112
A22: Sapato tipo social que seja macio, palmilha de montagem em couro, tipo conforto, solado em couro com proteção antiderrapante, salto médio ou modelo estilo boneca | C22: 2 | D22: 132 | G22: =(D22+E22+F22) -> 132 | H22: 264
A23: VALOR TOTAL (R$) | H23: =SUM(H6:H22) -> 12509.17333

Sheet Materiais
A1: MINISTÉRIO DO DESENVOLVIMENTO REGIONAL COMPANHIA DE DESENVOLVIMENTO DOS VALES DO SÃO FRANISCO E DO PARNAÍBA 4ª SUPERINTENDÊNCIA REGIONAL
A2: PLANILHA - COTAÇÕES
A3: MATERIAIS
A4: DESCRIÇÃO | B4: QUANT ANO | C4: UN | D4: EMPRESA 1 | E4: EMPRESA 2 | F4: EMPRESA 3 | G4: MÉDIA (R$) | H4: VALOR ANUAL (R$)
A5: Álcool Etílico Limpeza De Ambientes Tipo: Gel Sanitizante , Aplicação: Limpeza , Características Adicionais: Neutro , Concentração: 73% | B5: 360 | C5: Lt | D5: compra.gov | E5: compra.gov | F5: compra.gov | G5: 8.3 | H5: =G5*B5 -> 2988
A6: Água Sanitária de 2,0 a 2,5% de cloro, com registro na ANVISA | B6: 36 | C6: 5Lt | D6: compra.gov | E6: compra.gov | F6: compra.gov | G6: 9.49 | H6: =G6*B6 -> 341.64
A7: Cera Polimento Piso Composição Básica: Perfuoroalquil Amônio, Agentes De Polimento, Solve | B7: 24 | C7: Lt | D7: compra.gov | E7: compra.gov | F7: compra.gov | G7: 5.35 | H7: 128.4
A8: Desinfetante que tenha em sua composição: Nonil, Fenol, Cloreto Amônio, com registro na ANVISA | B8: 720 | C8: Lt | D8: compra.gov | E8: compra.gov | F8: compra.gov | G8: 4.59 | H8: 3304.8
A9: Detergente para lavar louça - 500 ml 100% biodegradável com Registro ANVISA | B9: 144 | C9: Un | D9: compra.gov | E9: compra.gov | F9: compra.gov | G9: 1.9 | H9: 273.6
A10: Aromatizador de ambiente automático clipper | B10: 180 | C10: Un | D10: Amazon 19,81 | E10: Kalunga 39,50 | F10: Mercado livre 37,27 | G10: =(19.81+39.5+37.27)/3 -> 32.19333333 | H10: 5794.8
A11: Desodorizador de Ar de 360 ml | B11: 60 | C11: Un | D11: compra.gov | E11: compra.gov | F11: compra.gov | G11: 8.16 | H11: 489.6
A12: Esponja para louça: Espuma com duas faces: pacote 4 unidades | B12: 54 | C12: Un | D12: compra.gov | E12: compra.gov | F12: compra.gov | G12: 2.35 | H12: 126.9
A13: Esponja Limpeza Material: Fibra Sintética para lavagem De Carros E Vidraças | B13: 24 | C13: Un | D13: compra.gov | E13: compra.gov | F13: compra.gov | G13: 7.25 | H13: 174
A14: Flanela, cor branca, amarela e vermelha, em Tecido de Algodão | B14: 60 | C14: Un | D14: compra.gov | E14: compra.gov | F14: compra.gov | G14: 1.96 | H14: 117.6
A15: Inseticida aerosol - mínimo 300 ml | B15: 36 | C15: Un | D15: compra.gov | E15: compra.gov | F15: compra.gov | G15: 11 | H15: 396
A16: Palha de aço, que tenha em sua composição: Aço Carbono | B16: 36 | C16: pct | D16: compra.gov | E16: compra.gov | F16: compra.gov | G16: 2.49 | H16: 89.64
A17: Limpa vidros concentrado de 500 ml, diluição 1:20, registro na ANVISA | B17: 120 | C17: Un | D17: compra.gov | E17: compra.gov | F17: compra.gov | G17: 4.54 | H17: 544.8
A18: Detergente neutro biodegradável hiper concentrado, alta diluição, até 1:300 | B18: 48 | C18: 5Lt | D18: Amazon 52,00 | E18: Mercado livre 59,90 | F18: Magalu 60,24 | G18: =(52+59.9+60.24)/3 -> 57.38 | H18: 2754.24
A19: Limpador multiuso, frasco de 500 ml | B19: 144 | C19: Un | D19: Amazon 5,87 | E19: Americanas 4,99 | F19: Carrefour 7,20 | G19: =(5.87+4.99+7.2)/3 -> 6.02 | H19: 866.88
A20: Lustra móvel, que tenha em sua composição: Óleo Parafínico, Silicone, Alcalinizante e Cera Micro | B20: 4 | C20: Un | D20: compra.gov | E20: compra.gov | F20: compra.gov | G20: 10.56 | H20: 42.24
A21: Papel higiênico rolo individual com 220 m de 1ª qualidade | B21: 480 | C21: rolo | D21: compra.gov | E21: compra.gov | F21: compra.gov | G21: 6.85 | H21: 3288
A22: Toalha De Papel Material: Celulose (100% Fibras Naturais) , Comprimento: 200 M, Largura: 20 CM | B22: 480 | C22: fardo 6 um | D22: compra.gov | E22: compra.gov | F22: compra.gov | G22: 59.62 | H22: 28617.6
A23: Pastilha Sanitária Caixa 3 Unidade, com registro na ANVISA | B23: 360 | C23: Cx 3 un | D23: compra.gov | E23: compra.gov | F23: compra.gov | G23: 3.1 | H23: 1116
A24: Pano de Prato | B24: 144 | C24: Un | D24: compra.gov | E24: compra.gov | F24: compra.gov | G24: 3.76 | H24: 541.44
A25: Pano de limpeza multiuso - tipo pirex - embalagem com 5 unidades | B25: 144 | C25: pct | D25: compra.gov | E25: compra.gov | F25: compra.gov | G25: 2.51 | H25: 361.44
A26: Pano de chão, para limpeza, branco em Tecido Alvejado 55 X 70, 100% Algodão | B26: 288 | C26: Un | D26: Amazon 4,48 | E26: Mercado livre 3,79 | F26: Shopee 3,10 | G26: =(4.48+3.79+3.1)/3 -> 3.79 | H26: 1091.52
A27: Sabão em barra de 1° qualidade 100% biodegradável com Registro ANVISA | B27: 48 | C27: Un | D27: compra.gov | E27: compra.gov | F27: compra.gov | G27: 6.46 | H27: 310.08
A28: Saco plástico para lixo de 100 litros, c/100, Espessura de Quatro Micas; | B28: 84 | C28: Un | D28: compra.gov | E28: compra.gov | F28: compra.gov | G28: 36.09 | H28: 3031.56
A29: Saco plástico para lixo de 40 litros, c/100 Espessura de Quatro Micas; | B29: 84 | C29: Un | D29: compra.gov | E29: compra.gov | F29: compra.gov | G29: 20.4 | H29: 1713.6
A30: Saco plástico para lixo de 60 litros, c/100 Espessura de Quatro Micas; | B30: 84 | C30: Un | D30: compra.gov | E30: compra.gov | F30: compra.gov | G30: 24.19 | H30: 2031.96
A31: Sabão em pó de 500 g, que tenha em sua composição: Componente Ativo: Linear Alquil. Benzeno, Sulfato de Sódio, branqueador óptico, corante, amaciante, perfume e água | B31: 192 | C31: pct | D31: compra.gov | E31: compra.gov | F31: compra.gov | G31: 4.9 | H31: 940.8
A32: Desincrostante Composição | B32: 12 | C32: 5Lt | D32: compra.gov | E32: compra.gov | F32: compra.gov | G32: 61.57 | H32: 738.84
A33: Sabonete Líquido, perfumado, que tenha em sua composição: Sulfato de Sódio, Emoluente, Agente Controlador de P.H, com registro na ANVISA | B33: 240 | C33: Lt | D33: compra.gov | E33: compra.gov | F33: compra.gov | G33: 8.87 | H33: 2128.8
A34: Soda Caustica 950g | B34: 23 | C34: Kg | D34: compra.gov | E34: compra.gov | F34: compra.gov | G34: 24.76 | H34: 569.48
A35: Vassouras de nylon 30 cm, com cabo, ideal para calçadas e pisos rústicos - uso externo (condor ou similar) | B35: 60 | C35: Un | D35: compra.gov | E35: compra.gov | F35: compra.gov | G35: 18 | H35: 1080
A36: Vassouras de pelo 40 cm, com cabo | B36: 60 | C36: Un | D36: compra.gov | E36: compra.gov | F36: compra.gov | G36: 19.99 | H36: 1199.4
A37: Vassoura de vasculhar, com cabo de 3 metros | B37: 2 | C37: Un | D37: Mercado livre 75,04 | E37: Shopee 85,99 | F37: Magalu 91,11 | G37: =(75.04+85.99+91.11)/3 -> 84.04666667 | H37: 168.0933333
A38: Escova para Vaso Sanitário com cerdas de nylon, com suporte | B38: 12 | C38: Un | D38: compra.gov | E38: compra.gov | F38: compra.gov | G38: 6.7 | H38: 80.4
A39: Rodo de borracha com cabo 40 cm | B39: 60 | C39: Un | D39: compra.gov | E39: compra.gov | F39: compra.gov | G39: 6.93 | H39: 415.8
A40: Balde Plástico de 20 litros | B40: 60 | C40: Un | D40: compra.gov | E40: compra.gov | F40: compra.gov | G40: 15.98 | H40: 958.8
A41: Pá para lixo de plástico, com cabo longo | B41: 24 | C41: Un | D41: compra.gov | E41: compra.gov | F41: compra.gov | G41: 12.5 | H41: 300
A42: Pá para lixo de aço, com cabo longo | B42: 24 | C42: Un | D42: compra.gov | E42: compra.gov | F42: compra.gov | G42: 11 | H42: =G42*B42 -> 264
A43: Espanador grande | B43: 2 | C43: Un | D43: Amazon 33,13 | E43: Magalu 14,29 | F43: Mercdo livre 23,90 | G43: =(33.13+14.29+23.9)/3 -> 23.77333333 | H43: 47.54666667
A44: Espanador medio | B44: 2 | C44: Un | D44: Amazon 24,74 | E44: Shopee 29,90 | F44: Temu 17,42 | G44: =(24.72+29.9+17.42)/3 -> 24.01333333 | H44: 48.02666667
A45: VALOR TOTAL (R$) | H45: =SUM(H5:H44) -> 69476.32667

Sheet Insumo Téc. Manutenção
A1: MINISTÉRIO DO DESENVOLVIMENTO REGIONAL COMPANHIA DE DESENVOLVIMENTO DOS VALES DO SÃO FRANISCO E DO PARNAÍBA 4ª SUPERINTENDÊNCIA REGIONAL
A2: PLANILHA - COTAÇÕES
A3: MATERIAIS
A4: Obra Insumos - Tec de Manutenção
A5: Bancos SINAPI - 04/2025 - Sergipe SBC - 05/2025 - Sergipe ORSE - 02/2025 - Sergipe
A6: B.D.I. 0,0%
A7: Encargos Sociais: Desonerado, embutido nos preços unitário dos insumos de mão de obra, de acordo com as bases.
A8: MATERIAL MANUTENÇÃO PREDIAL
A9: Item | B9: Código | C9: Banco | D9: Descrição | E9: UN | F9: Quant | G9: Valor Unit | H9: Valor Unit com BDI | I9: Total | J9: Peso (%)
A10: 1 | D10: Manutenção Elétrica | F10: 1 | H10: 5025.85 | I10: 5025.85 | J10: 0.2415234791
A11: 1.1 | B11: 00043472/SINAPI | C11: ORSE | D11: Ferramentas - familia eletricista - mensalista (encargos complementares - coletado caixa) | E11: mes | F11: 3 | G11: 161.73 | H11: 161.73 | I11: 485.19 | J11: 0.02331640953
A12: 1.2 | B12: 00020111 | C12: SINAPI | D12: FITA ISOLANTE ADESIVA ANTICHAMA, USO ATE 750 V, EM ROLO DE 19 MM X 20 M | E12: un | F12: 12 | G12: 12 | H12: 12 | I12: 144 | J12: 0.006920099284
A13: 1.3 | B13: 00034602 | C13: SINAPI | D13: CABO FLEXIVEL PVC 750 V, 2 CONDUTORES DE 1,5 MM2 | E13: M | F13: 100 | G13: 4.4 | H13: 4.4 | I13: 440 | J13: 0.02114474781
A14: 1.4 | B14: 2994 | C14: ORSE | D14: Cabo cobre flexível, isolado, 2,5mm2 - 450/750V / 70º | E14: m | F14: 100 | G14: 2.34 | H14: 2.34 | I14: 234 | J14: 0.01124516134
A15: 1.5 | B15: 3804 | C15: ORSE | D15: Cabo de cobre PP Cordplast 2 x 2,5 mm2, 450/750v | E15: m | F15: 60 | G15: 5.9 | H15: 5.9 | I15: 354 | J15: 0.01701191074
A16: 1.6 | B16: 00012128 | C16: SINAPI | D16: INTERRUPTOR SIMPLES 10A, 250V, CONJUNTO MONTADO PARA SOBREPOR 4" X 2" (CAIXA + MODULO) | E16: un | F16: 10 | G16: 6.85 | H16: 6.85 | I16: 68.5 | J16: 0.003291852784
A17: 1.7 | B17: 00012147 | C17: SINAPI | D17: TOMADA 2P+T 10A, 250V, CONJUNTO MONTADO PARA SOBREPOR 4" X 2" (CAIXA + MODULO) | E17: un | F17: 20 | G17: 10.18 | H17: 10.18 | I17: 203.6 | J17: 0.009784251488
A18: 1.8 | B18: 00038075 | C18: SINAPI | D18: TOMADA 2P+T 20A 250V, CONJUNTO MONTADO PARA EMBUTIR 4" X 2" (PLACA + SUPORTE + MODULO) | E18: un | F18: 5 | G18: 11.57 | H18: 11.57 | I18: 57.85 | J18: 0.002780053775
A19: 1.9 | B19: 505 | C19: ORSE | D19: Canaleta plastica 20 x 10mm, sem divisória (ref. 308 02, Pial Legrand ou similar) | E19: m | F19: 100 | G19: 1.85 | H19: 1.85 | I19: 185 | J19: 0.00889040533
A20: 1.10 | B20: 2650 | C20: ORSE | D20: Relé fotoelétrico 1000 w - 220 v | E20: un | F20: 1 | G20: 35.46 | H20: 35.46 | I20: 35.46 | J20: 0.001704074449
A21: 1.11 | B21: 1313 | C21: ORSE | D21: Lâmpada vapor mercúrio 400 w (philips ref. hpl - n400 ou similar) | E21: un | F21: 2 | G21: 33.99 | H21: 33.99 | I21: 67.98 | J21: 0.003266863537
A22: 1.12 | B22: 13791 | C22: ORSE | D22: Refletor Slim LED 100W de potência, branco Frio, 6500k, Autovolt, marca G-light ou similar | E22: un | F22: 2 | G22: 66.7 | H22: 66.7 | I22: 133.4 | J22: 0.006410703087
A23: 1.13 | B23: 00039391 | C23: SINAPI | D23: LUMINARIA LED REFLETOR RETANGULAR BIVOLT, LUZ BRANCA, 50 W | E23: un | F23: 5 | G23: 24.58 | H23: 24.58 | I23: 122.9 | J23: 0.005906112514
A24: 1.14 | B24: 00039385 | C24: SINAPI | D24: LUMINARIA LED PLAFON REDONDO DE SOBREPOR BIVOLT 12/13 W, D = *17* CM | E24: un | F24: 5 | G24: 9.62 | H24: 9.62 | I24: 48.1 | J24: 0.002311505386
A25: 1.15 | B25: 1969 | C25: ORSE | D25: Régua (filtro de linha) com 5 tomadas 2p+t | E25: un | F25: 8 | G25: 27.95 | H25: 27.95 | I25: 223.6 | J25: 0.01074537639
A26: 1.16 | B26: 13397 | C26: ORSE | D26: Caixa de sobrepor para 01 disjuntor bipolar ou 02 disjuntores monopolar, Fameou similar | E26: un | F26: 10 | G26: 11.2 | H26: 11.2 | I26: 112 | J26: 0.005382299443
A27: 1.17 | B27: 00034616 | C27: SINAPI | D27: DISJUNTOR TERMOMAGNETICO PARA TRILHO DIN (IEC), BIPOLAR, 6 - 32 A | E27: un | F27: 5 | G27: 43.81 | H27: 43.81 | I27: 219.05 | J27: 0.01052672047
A28: 1.18 | B28: 00001571 | C28: SINAPI | D28: TERMINAL A COMPRESSAO EM COBRE ESTANHADO PARA CABO 4 MM2, 1 FURO E 1 COMPRESSAO, PARA PARAFUSO DE FIXACAO M5 | E28: un | F28: 10 | G28: 1.21 | H28: 1.21 | I28: 12.1 | J28: 0.0005814805649
A29: 1.19 | B29: 866 | C29: ORSE | D29: Eletroduto condulete pvc rígido, d= 3/4" | E29: m | F29: 50 | G29: 4.63 | H29: 4.63 | I29: 231.5 | J29: 0.01112502072
A30: 1.20 | B30: 870 | C30: ORSE | D30: Eletroduto flexível em pvc, sanfonado (corrugado), amarelo, d= 3/4", Tigreflex ou similar | E30: m | F30: 50 | G30: 2.62 | H30: 2.62 | I30: 131 | J30: 0.006295368099
A31: 1.21 | B31: 00043972/SINAPI | C31: ORSE | D31: Cabo de rede, par trancado u/utp, 4 pares, categoria 5e (cat 5e), isolamento pvc (cm) | E31: m | F31: 305 | G31: 3.55 | H31: 3.55 | I31: 1082.75 | J31: 0.05203289931
A32: 1.22 | B32: 2241 | C32: ORSE | D32: Tomada para lógica, sistema x, com placa | E32: un | F32: 10 | G32: 22.53 | H32: 22.53 | I32: 225.3 | J32: 0.01082707201
A33: 1.23 | B33: 0012 | C33: Próprio | D33: Luminária Slim LED Linear sobrepor 60cm 18W | E33: un | F33: 3 | G33: 43.19 | H33: 43.19 | I33: 129.57 | J33: 0.006226647668
A34: 1.24 | B34: 00007543 | C34: SINAPI | D34: TAMPA CEGA EM PVC PARA CONDULETE 4 X 2" | E34: un | F34: 5 | G34: 3.74 | H34: 3.74 | I34: 18.7 | J34: 0.000898651782
A35: 1.25 | B35: 00001872 | C35: SINAPI | D35: CAIXA DE PASSAGEM, EM PVC, DE 4" X 2", PARA ELETRODUTO FLEXIVEL CORRUGADO | E35: un | F35: 5 | G35: 1.66 | H35: 1.66 | I35: 8.3 | J35: 0.0003988668337
A36: 1.26 | B36: 9096 | C36: ORSE | D36: Tomada 2p + t, ABNT, de embutir, 10 A, com placa em pvc | E36: un | F36: 5 | G36: 10.4 | H36: 10.4 | I36: 52 | J36: 0.002498924742
A37: 2 | D37: Manutenção Civil | F37: 1 | H37: 11129.48 | I37: 11129.48 | J37: 0.5348410179
A38: 2.1 | B38: 00043477 | C38: SINAPI | D38: FERRAMENTAS - FAMILIA PEDREIRO - MENSALISTA (ENCARGOS COMPLEMENTARES - COLETADO CAIXA) | E38: Mês | F38: 3 | G38: 147.87 | H38: 147.87 | I38: 443.61 | J38: 0.02131823086
A39: 2.2 | B39: 00043478 | C39: SINAPI | D39: FERRAMENTAS - FAMILIA PINTOR - MENSALISTA (ENCARGOS COMPLEMENTARES - COLETADO CAIXA) | E39: Mês | F39: 3 | G39: 387.36 | H39: 387.36 | I39: 1162.08 | J39: 0.05584520122
A40: 2.3 | B40: 00001379 | C40: SINAPI | D40: CIMENTO PORTLAND COMPOSTO CP II-32 | E40: Kg | F40: 500 | G40: 0.76 | H40: 0.76 | I40: 380 | J40: 0.01826137311
A41: 2.4 | B41: 00001106 | C41: SINAPI | D41: CAL HIDRATADA CH-I PARA ARGAMASSAS | E41: Kg | F41: 20 | G41: 1.3 | H41: 1.3 | I41: 26 | J41: 0.001249462371
A42: 2.5 | B42: 00003315 | C42: SINAPI | D42: GESSO EM PO PARA REVESTIMENTOS/MOLDURAS/SANCAS E USO GERAL | E42: Kg | F42: 20 | G42: 0.9 | H42: 0.9 | I42: 18 | J42: 0.0008650124105
A43: 2.6 | B43: 00001381 | C43: SINAPI | D43: ARGAMASSA COLANTE AC I PARA CERAMICAS | E43: Kg | F43: 50 | G43: 0.9 | H43: 0.9 | I43: 45 | J43: 0.002162531026
A44: 2.7 | B44: 00037595 | C44: SINAPI | D44: ARGAMASSA COLANTE TIPO AC III | E44: Kg | F44: 25 | G44: 2.76 | H44: 2.76 | I44: 69 | J44: 0.003315880907
A45: 2.8 | B45: 00039961 | C45: SINAPI | D45: SILICONE ACETICO USO GERAL INCOLOR 280 G | E45: un | F45: 2 | G45: 30.1 | H45: 30.1 | I45: 60.2 | J45: 0.002892985951
A46: 2.9 | B46: 00038123 | C46: SINAPI | D46: SELANTE TIPO VEDA CALHA PARA METAL E FIBROCIMENTO | E46: Kg | F46: 2 | G46: 42.1 | H46: 42.1 | I46: 84.2 | J46: 0.004046335831
A47: 2.10 | B47: 00000142 | C47: SINAPI | D47: SELANTE ELASTICO MONOCOMPONENTE A BASE DE POLIURETANO (PU) PARA JUNTAS DIVERSAS | E47: 310ML | F47: 2 | G47: 45.56 | H47: 45.56 | I47: 91.12 | J47: 0.004378885047
A48: 2.11 | B48: 10423 | C48: ORSE | D48: Fechadura tubular Lockwell para divisória chave/botão de girar, ref:41410N, cor preta, ou similar | E48: un | F48: 5 | G48: 130.62 | H48: 130.62 | I48: 653.1 | J48: 0.03138553363
A49: 2.12 | B49: 00003080 | C49: SINAPI | D49: FECHADURA ESPELHO PARA PORTA EXTERNA, EM ACO INOX (MAQUINA, TESTA E CONTRA-TESTA) E EM ZAMAC (MACANETA, LINGUETA E TRINCOS) COM ACABAMENTO CROMADO, MAQUINA DE 40 MM, INCLUINDO CHAVE TIPO CILINDRO | E49: CJ | F49: 5 | G49: 65 | H49: 65 | I49: 325 | J49: 0.01561827963
A50: 2.13 | B50: 00002418 | C50: SINAPI | D50: DOBRADICA EM ACO/FERRO, 3" X 2 1/2", E= 1,2 A 1,8 MM, SEM ANEL, CROMADO OU ZINCADO, TAMPA BOLA, COM PARAFUSOS | E50: un | F50: 6 | G50: 27.45 | H50: 27.45 | I50: 164.7 | J50: 0.007914863556
A51: 2.14 | B51: 12483 | C51: ORSE | D51: Trinco de sobrepor p/basculante, cromado, ref. M60975 , Mundial ou similar | E51: un | F51: 4 | G51: 14.68 | H51: 14.68 | I51: 58.72 | J51: 0.002821862708
A52: 2.15 | B52: 00043626 | C52: SINAPI | D52: MASSA CORRIDA PARA SUPERFICIES DE AMBIENTES INTERNOS | E52: Kg | F52: 18 | G52: 2.39 | H52: 2.39 | I52: 43.02 | J52: 0.002067379661
A53: 2.16 | B53: 00038121 | C53: SINAPI | D53: TINTA A BASE DE RESINA ACRILICA EMULSIONADA EM AGUA, PARA SINALIZACAO HORIZONTAL VIARIA (NBR 13699:2012) | E53: L | F53: 18 | G53: 13.93 | H53: 13.93 | I53: 250.74 | J53: 0.01204962288
A54: 2.17 | B54: 00035692 | C54: SINAPI | D54: TINTA LATEX ACRILICA STANDARD, COR BRANCA | E54: L | F54: 36 | G54: 21.51 | H54: 21.51 | I54: 774.36 | J54: 0.0372128339
A55: 2.18 | B55: 00043776 | C55: SINAPI | D55: TINTA A OLEO BRILHANTE, PARA MADEIRAS E METAIS | E55: L | F55: 7.2 | G55: 26.61 | H55: 26.61 | I55: 191.59 | J55: 0.009207095985
A56: 2.19 | B56: 00003767 | C56: SINAPI | D56: LIXA EM FOLHA PARA PAREDE OU MADEIRA, NUMERO 120, COR VERMELHA | E56: un | F56: 100 | G56: 0.8 | H56: 0.8 | I56: 80 | J56: 0.003844499602
A57: 2.20 | B57: 00012815 | C57: SINAPI | D57: FITA CREPE ROLO DE *25* MM X 50 M | E57: un | F57: 5 | G57: 9.59 | H57: 9.59 | I57: 47.95 | J57: 0.002304296949
A58: 2.21 | B58: 3157 | C58: ORSE | D58: Redutor químico tipo 2002 acabamento (Thinner) | E58: l | F58: 5 | G58: 37.66 | H58: 37.66 | I58: 188.3 | J58: 0.009048990939
A59: 2.22 | B59: 00039026 | C59: SINAPI | D59: PREGO DE ACO POLIDO SEM CABECA 15 X 15 (1 1/4 X 13) | E59: Kg | F59: 0.5 | G59: 19 | H59: 19 | I59: 9.5 | J59: 0.0004565343278
A60: 2.23 | B60: 00005065 | C60: SINAPI | D60: PREGO DE ACO POLIDO COM CABECA 10 X 10 (7/8 X 17) | E60: Kg | F60: 0.5 | G60: 32.14 | H60: 32.14 | I60: 16.07 | J60: 0.0007722638576
A61: 2.24 | B61: 00005075 | C61: SINAPI | D61: PREGO DE ACO POLIDO COM CABECA 18 X 30 (2 3/4 X 10) | E61: Kg | F61: 0.5 | G61: 16.9 | H61: 16.9 | I61: 8.45 | J61: 0.0004060752705
A62: 2.25 | B62: 00011055 | C62: SINAPI | D62: PARAFUSO ROSCA SOBERBA ZINCADO CABECA CHATA FENDA SIMPLES 3,5 X 25 MM (1 ") | E62: un | F62: 100 | G62: 0.1 | H62: 0.1 | I62: 10 | J62: 0.0004805624503
A63: 2.26 | B63: 00004375 | C63: SINAPI | D63: BUCHA DE NYLON SEM ABA S6 | E63: un | F63: 100 | G63: 0.06 | H63: 0.06 | I63: 6 | J63: 0.0002883374702
A64: 2.27 | B64: 00004377 | C64: SINAPI | D64: PARAFUSO DE ACO ZINCADO COM ROSCA SOBERBA, CABECA CHATA E FENDA SIMPLES, DIAMETRO 4,2 MM, COMPRIMENTO * 32 * MM | E64: un | F64: 100 | G64: 0.2 | H64: 0.2 | I64: 20 | J64: 0.0009611249006
A65: 2.28 | B65: 00004376 | C65: SINAPI | D65: BUCHA DE NYLON SEM ABA S8 | E65: un | F65: 100 | G65: 0.11 | H65: 0.11 | I65: 11 | J65: 0.0005286186953
A66: 2.29 | B66: 00011962 | C66: SINAPI | D66: PARAFUSO ZINCADO, SEXTAVADO, COM ROSCA INTEIRA, DIAMETRO 1/4", COMPRIMENTO 1/2" | E66: un | F66: 20 | G66: 0.25 | H66: 0.25 | I66: 5 | J66: 0.0002402812251
A67: 2.30 | B67: 00004374 | C67: SINAPI | D67: BUCHA DE NYLON SEM ABA S10 | E67: un | F67: 20 | G67: 0.22 | H67: 0.22 | I67: 4.4 | J67: 0.0002114474781
A68: 2.31 | B68: 038004 | C68: SBC | D68: FITA ZEBRADA PARA SINALIZACAO 7cm x 100m | E68: M | F68: 200 | G68: 0.12 | H68: 0.12 | I68: 24 | J68: 0.001153349881
A69: 2.32 | B69: 00000414 | C69: SINAPI | D69: ABRACADEIRA DE NYLON PARA AMARRACAO DE CABOS, COMPRIMENTO DE 100 X 2,5 MM | E69: un | F69: 100 | G69: 0.05 | H69: 0.05 | I69: 5 | J69: 0.0002402812251
A70: 2.33 | B70: 00000408 | C70: SINAPI | D70: ABRACADEIRA DE NYLON PARA AMARRACAO DE CABOS, COMPRIMENTO DE 390 X *4,6* MM | E70: un | F70: 100 | G70: 0.84 | H70: 0.84 | I70: 84 | J70: 0.004036724582
A71: 2.34 | B71: 00000344 | C71: SINAPI | D71: ARAME GALVANIZADO 16 BWG, D = 1,65MM (0,0166 KG/M) | E71: Kg | F71: 10 | G71: 33.07 | H71: 33.07 | I71: 330.7 | J71: 0.01589220023
A72: 2.35 | B72: 4909 | C72: ORSE | D72: Estaca pré-moldada de concreto armado (mourão), para cerca, seção 10x10, retaou com ponta oblíqua, h(u) = 2,50m | E72: un | F72: 10 | G72: 76.18 | H72: 76.18 | I72: 761.8 | J72: 0.03660924746
A73: 2.36 | B73: 00000340 | C73: SINAPI | D73: ARAME FARPADO GALVANIZADO, 16 BWG (1,65 MM), CLASSE 250 | E73: M | F73: 500 | G73: 1.38 | H73: 1.38 | I73: 690 | J73: 0.03315880907
A74: 2.37 | B74: 00000140 | C74: SINAPI | D74: IMPERMEABILIZANTE FLEXIVEL BRANCO DE BASE ACRILICA PARA COBERTURAS | E74: Kg | F74: 36 | G74: 24.98 | H74: 24.98 | I74: 899.28 | J74: 0.04321602003
A75: 2.38 | B75: 10461 | C75: ORSE | D75: Manta asfáltica aluminizada esp=3mm, a base de asfalto modificado c/polimeros, estruturada com não-tecido de poliester, Ref:Classic Aluminio, marca Viapolou similar | E75: m² | F75: 5 | G75: 66.28 | H75: 66.28 | I75: 331.4 | J75: 0.0159258396
A76: 2.39 | B76: 13991 | C76: ORSE | D76: Grafite em pó Koh I Noor ou similar | E76: g | F76: 25 | G76: 0.79 | H76: 0.79 | I76: 19.75 | J76: 0.0009491108393
A77: 2.40 | B77: 00004229 | C77: SINAPI | D77: GRAXA LUBRIFICANTE A BASE DE LITIO, DE MULTIPLAS APLICACOES E CONTENDO ADITIVOS DE EXTREMA PRESSAO (GRAU DE VISCOSIDADE NLGI 2) | E77: Kg | F77: 1 | G77: 42.9 | H77: 42.9 | I77: 42.9 | J77: 0.002061612912
A78: 2.41 | B78: 0011 | C78: Próprio | D78: Desengripante/Lubrificante em Aerossol - 300ML, tipo WD40 ou similiar | E78: un | F78: 4 | G78: 40.9 | H78: 40.9 | I78: 163.6 | J78: 0.007862001687
A79: 2.42 | B79: 3109 | C79: ORSE | D79: Vaselina liquida 1000ml | E79: l | F79: 1 | G79: 24.94 | H79: 24.94 | I79: 24.94 | J79: 0.001198522751
A80: 2.43 | B80: 00011962 | C80: SINAPI | D80: PARAFUSO ZINCADO, SEXTAVADO, COM ROSCA INTEIRA, DIAMETRO 1/4", COMPRIMENTO 1/2" | E80: un | F80: 20 | G80: 0.25 | H80: 0.25 | I80: 5 | J80: 0.0002402812251
A81: 2.44 | B81: 840 | C81: ORSE | D81: Divisória Naval (painel cego), e=35mm, com perfis em aço ou similar | E81: m² | F81: 25 | G81: 100 | H81: 100 | I81: 2500 | J81: 0.1201406126
A82: 3 | D82: Manutenção Hidraulica | F82: 1 | H82: 4653.62 | I82: 4653.62 | J82: 0.223635503
A83: 3.1 | B83: 00043473 | C83: SINAPI | D83: FERRAMENTAS - FAMILIA ENCANADOR - MENSALISTA (ENCARGOS COMPLEMENTARES - COLETADO CAIXA) | E83: Mês | F83: 3 | G83: 59.01 | H83: 59.01 | I83: 177.03 | J83: 0.008507397058
A84: 3.2 | B84: 00020080 | C84: SINAPI | D84: ADESIVO PLASTICO PARA PVC, FRASCO COM 175 GR | E84: un | F84: 2 | G84: 20.09 | H84: 20.09 | I84: 40.18 | J84: 0.001930899925
A85: 3.3 | B85: 00003148 | C85: SINAPI | D85: FITA VEDA ROSCA, EM PTFE, ROLO DE 18 MM X 50 M (L X C) | E85: un | F85: 3 | G85: 12.9 | H85: 12.9 | I85: 38.7 | J85: 0.001859776683
A86: 3.4 | B86: 00044945 | C86: SINAPI | D86: SIFAO / TUBO SINFONADO EXTENSIVEL/SANFONADO, UNIVERSAL/ SIMPLES, ENTRE *50 A 70* CM, DE PLASTICO BRANCO | E86: un | F86: 6 | G86: 8 | H86: 8 | I86: 48 | J86: 0.002306699761
A87: 3.5 | B87: 2260 | C87: ORSE | D87: Torneira plastica para jardins 1/2", HERC 1128 ou similar | E87: un | F87: 5 | G87: 2.13 | H87: 2.13 | I87: 10.65 | J87: 0.0005117990096
A88: 3.6 | B88: 2259 | C88: ORSE | D88: Torneira plastica para tanque de lavar 1/2", HERC 1126 ou similar | E88: un | F88: 2 | G88: 2.85 | H88: 2.85 | I88: 5.7 | J88: 0.0002739205967
A89: 3.7 | B89: 00036796 | C89: SINAPI | D89: TORNEIRA METALICA CROMADA DE MESA, PARA LAVATORIO, TEMPORIZADA PRESSAO FECHAMENTO AUTOMATICO, BICA BAIXA | E89: un | F89: 6 | G89: 144.79 | H89: 144.79 | I89: 868.74 | J89: 0.04174838231
A90: 3.8 | B90: 00011681 | C90: SINAPI | D90: ENGATE/RABICHO FLEXIVEL PLASTICO (PVC OU ABS) BRANCO 1/2" X 40 CM | E90: un | F90: 5 | G90: 6.1 | H90: 6.1 | I90: 30.5 | J90: 0.001465715473
A91: 3.9 | B91: 005714 | C91: SBC | D91: NIPLE PVC ROSCA 1/2" | E91: un | F91: 5 | G91: 1.75 | H91: 1.75 | I91: 8.75 | J91: 0.000420492144
A92: 3.10 | B92: 00009869 | C92: SINAPI | D92: TUBO PVC, SOLDAVEL, DE 32 MM, AGUA FRIA (NBR-5648) | E92: M | F92: 6 | G92: 8.16 | H92: 8.16 | I92: 48.96 | J92: 0.002352833757
A93: 3.11 | B93: 00038021 | C93: SINAPI | D93: LUVA DE CORRER PARA TUBO SOLDAVEL, PVC, 32 MM, PARA AGUA FRIA PREDIAL | E93: un | F93: 3 | G93: 19.94 | H93: 19.94 | I93: 59.82 | J93: 0.002874724578
A94: 3.12 | B94: 00003536 | C94: SINAPI | D94: JOELHO PVC, SOLDAVEL, 90 GRAUS, 32 MM, COR MARROM, PARA AGUA FRIA PREDIAL | E94: un | F94: 5 | G94: 2.2 | H94: 2.2 | I94: 11 | J94: 0.0005286186953
A95: 3.13 | B95: 00007140 | C95: SINAPI | D95: TE SOLDAVEL, PVC, 90 GRAUS, 32 MM, PARA AGUA FRIA PREDIAL (NBR 5648) | E95: un | F95: 5 | G95: 3.43 | H95: 3.43 | I95: 17.15 | J95: 0.0008241646023
A96: 3.14 | B96: 00000829 | C96: SINAPI | D96: BUCHA DE REDUCAO DE PVC, SOLDAVEL, CURTA, COM 32 X 25 MM, PARA AGUA FRIA PREDIAL | E96: un | F96: 4 | G96: 0.87 | H96: 0.87 | I96: 3.48 | J96: 0.0001672357327
A97: 3.15 | B97: 00003524 | C97: SINAPI | D97: JOELHO PVC, SOLDAVEL, COM BUCHA DE LATAO, 90 GRAUS, 25 MM X 3/4", PARA AGUA FRIA PREDIAL | E97: un | F97: 4 | G97: 7.34 | H97: 7.34 | I97: 29.36 | J97: 0.001410931354
A98: 3.16 | B98: 00009868 | C98: SINAPI | D98: TUBO PVC, SOLDAVEL, DE 25 MM, AGUA FRIA (NBR-5648) | E98: M | F98: 12 | G98: 3.78 | H98: 3.78 | I98: 45.36 | J98: 0.002179831275
A99: 3.17 | B99: 00003873 | C99: SINAPI | D99: LUVA DE CORRER PARA TUBO SOLDAVEL, PVC, 25 MM, PARA AGUA FRIA PREDIAL | E99: un | F99: 10 | G99: 11.23 | H99: 11.23 | I99: 112.3 | J99: 0.005396716317
A100: 3.18 | B100: 00003529 | C100: SINAPI | D100: JOELHO PVC, SOLDAVEL, 90 GRAUS, 25 MM, COR MARROM, PARA AGUA FRIA PREDIAL | E100: un | F100: 10 | G100: 0.66 | H100: 0.66 | I100: 6.6 | J100: 0.0003171712172
A101: 3.19 | B101: 00007139 | C101: SINAPI | D101: TE SOLDAVEL, PVC, 90 GRAUS, 25 MM, PARA AGUA FRIA PREDIAL (NBR 5648) | E101: un | F101: 5 | G101: 1.09 | H101: 1.09 | I101: 5.45 | J101: 0.0002619065354
A102: 3.20 | B102: 00009867 | C102: SINAPI | D102: TUBO PVC, SOLDAVEL, DE 20 MM, AGUA FRIA (NBR-5648) | E102: M | F102: 12 | G102: 3.35 | H102: 3.35 | I102: 40.2 | J102: 0.00193186105
A103: 3.21 | B103: 00003515 | C103: SINAPI | D103: JOELHO PVC, SOLDAVEL, COM BUCHA DE LATAO, 90 GRAUS, 20 MM X 1/2", PARA AGUA FRIA PREDIAL | E103: un | F103: 5 | G103: 5.93 | H103: 5.93 | I103: 29.65 | J103: 0.001424867665
A104: 3.22 | B104: 00003542 | C104: SINAPI | D104: JOELHO PVC, SOLDAVEL, 90 GRAUS, 20 MM, COR MARROM, PARA AGUA FRIA PREDIAL | E104: un | F104: 5 | G104: 0.54 | H104: 0.54 | I104: 2.7 | J104: 0.0001297518616
A105: 3.23 | B105: 00003861 | C105: SINAPI | D105: LUVA PVC SOLDAVEL, 20 MM, PARA AGUA FRIA PREDIAL | E105: un | F105: 5 | G105: 0.7 | H105: 0.7 | I105: 3.5 | J105: 0.0001681968576
A106: 3.24 | B106: 00007138 | C106: SINAPI | D106: TE SOLDAVEL, PVC, 90 GRAUS, 20 MM, PARA AGUA FRIA PREDIAL (NBR 5648) | E106: un | F106: 5 | G106: 0.96 | H106: 0.96 | I106: 4.8 | J106: 0.0002306699761
A107: 3.25 | B107: 00011673 | C107: SINAPI | D107: REGISTRO DE ESFERA, PVC, COM VOLANTE, VS, SOLDAVEL, DN 20 MM, COM CORPO DIVIDIDO | E107: un | F107: 2 | G107: 15.96 | H107: 15.96 | I107: 31.92 | J107: 0.001533955341
A108: 3.26 | B108: 00036801 | C108: SINAPI | D108: ACABAMENTO DE METAL CROMADO PARA REGISTRO PEQUENO, DE PAREDE, 1/2" OU 3/4" | E108: un | F108: 2 | G108: 34.3 | H108: 34.3 | I108: 68.6 | J108: 0.003296658409
A109: 3.27 | B109: 00009873 | C109: SINAPI | D109: TUBO PVC, SOLDAVEL, DE 60 MM, AGUA FRIA (NBR-5648) | E109: M | F109: 12 | G109: 23.11 | H109: 23.11 | I109: 277.32 | J109: 0.01332695787
A110: 3.28 | B110: 00003864 | C110: SINAPI | D110: LUVA PVC SOLDAVEL, 60 MM, PARA AGUA FRIA PREDIAL | E110: UN | F110: 6 | G110: 12.16 | H110: 12.16 | I110: 72.96 | J110: 0.003506183637
A111: 3.29 | B111: 00001925 | C111: SINAPI | D111: CURVA DE PVC 90 GRAUS, SOLDAVEL, 60 MM, COR MARROM, PARA AGUA FRIA PREDIAL | E111: un | F111: 4 | G111: 31.03 | H111: 31.03 | I111: 124.12 | J111: 0.005964741133
A112: 3.30 | B112: 00021112 | C112: SINAPI | D112: VALVULA DE DESCARGA EM METAL CROMADO PARA MICTORIO COM ACIONAMENTO POR PRESSAO E FECHAMENTO AUTOMATICO | E112: un | F112: 1 | G112: 292.59 | H112: 292.59 | I112: 292.59 | J112: 0.01406077673
A113: 3.31 | B113: 036536 | C113: SBC | D113: KIT REPARO PARA VALVULA DE DESCARGA DIAMETRO 1.1/4" e 1.1/2" | E113: un | F113: 4 | G113: 68.9 | H113: 68.9 | I113: 275.6 | J113: 0.01324430113
A114: 3.32 | B114: 00010432 | C114: SINAPI | D114: MICTORIO INDIVIDUAL, SIFONADO, DE LOUCA BRANCA, SEM COMPLEMENTOS | E114: un | F114: 2 | G114: 341.68 | H114: 341.68 | I114: 683.36 | J114: 0.0328397156
A115: 3.33 | B115: 00006138 | C115: SINAPI | D115: ANEL DE VEDACAO, PVC FLEXIVEL, 100 MM, PARA SAIDA DE BACIA / VASO SANITARIO | E115: un | F115: 2 | G115: 9.39 | H115: 9.39 | I115: 18.78 | J115: 0.0009024962816
A116: 3.34 | B116: 00000377 | C116: SINAPI | D116: ASSENTO SANITARIO DE PLASTICO, TIPO CONVENCIONAL | E116: un | F116: 4 | G116: 37.5 | H116: 37.5 | I116: 150 | J116: 0.007208436754
A117: 3.35 | B117: 00004384 | C117: SINAPI | D117: PARAFUSO NIQUELADO COM ACABAMENTO CROMADO PARA FIXAR PECA SANITARIA, INCLUI PORCA CEGA, ARRUELA E BUCHA DE NYLON TAMANHO S-10 | E117: un | F117: 6 | G117: 24.93 | H117: 24.93 | I117: 149.58 | J117: 0.007188253131
A118: 3.36 | B118: 00009838 | C118: SINAPI | D118: TUBO PVC SERIE NORMAL, DN 50 MM, PARA ESGOTO PREDIAL (NBR 5688) | E118: M | F118: 6 | G118: 9.38 | H118: 9.38 | I118: 56.28 | J118: 0.00270460547
A119: 3.37 | B119: 00020168 | C119: SINAPI | D119: LUVA SIMPLES, PVC SERIE R, 50 MM, PARA ESGOTO PREDIAL | E119: un | F119: 5 | G119: 8.83 | H119: 8.83 | I119: 44.15 | J119: 0.002121683218
A120: 3.38 | B120: 00003526 | C120: SINAPI | D120: JOELHO PVC, SOLDAVEL, PB, 90 GRAUS, DN 50 MM, PARA ESGOTO PREDIAL | E120: un | F120: 2 | G120: 2.67 | H120: 2.67 | I120: 5.34 | J120: 0.0002566203485
A121: 3.39 | B121: 00009835 | C121: SINAPI | D121: TUBO PVC SERIE NORMAL, DN 40 MM, PARA ESGOTO PREDIAL (NBR 5688) | E121: M | F121: 6 | G121: 5.68 | H121: 5.68 | I121: 34.08 | J121: 0.001637756831
A122: 3.40 | B122: 00020167 | C122: SINAPI | D122: LUVA SIMPLES, PVC SERIE R, 40 MM, PARA ESGOTO PREDIAL | E122: un | F122: 5 | G122: 4.29 | H122: 4.29 | I122: 21.45 | J122: 0.001030806456
A123: 3.41 | B123: 00037949 | C123: SINAPI | D123: JOELHO PVC, SOLDAVEL, PB, 90 GRAUS, DN 40 MM, PARA ESGOTO PREDIAL | E123: un | F123: 2 | G123: 1.94 | H123: 1.94 | I123: 3.88 | J123: 0.0001864582307
A124: 3.42 | B124: 00009836 | C124: SINAPI | D124: TUBO PVC SERIE NORMAL, DN 100 MM, PARA ESGOTO PREDIAL (NBR 5688) | E124: M | F124: 18 | G124: 13 | H124: 13 | I124: 234 | J124: 0.01124516134
A125: 3.43 | B125: 00001966 | C125: SINAPI | D125: CURVA PVC CURTA 90 GRAUS, DN 100 MM, PARA ESGOTO PREDIAL | E125: un | F125: 8 | G125: 20.34 | H125: 20.34 | I125: 162.72 | J125: 0.007819712191
A126: 3.44 | B126: 00020170 | C126: SINAPI | D126: LUVA SIMPLES, PVC SERIE R, 100 MM, PARA ESGOTO PREDIAL | E126: un | F126: 8 | G126: 11.84 | H126: 11.84 | I126: 94.72 | J126: 0.004551887529
A127: 3.45 | B127: 00036801 | C127: SINAPI | D127: ACABAMENTO DE METAL CROMADO PARA REGISTRO PEQUENO, DE PAREDE, 1/2" OU 3/4" | E127: un | F127: 2 | G127: 34.3 | H127: 34.3 | I127: 68.6 | J127: 0.003296658409
A128: 3.46 | B128: 00006158 | C128: SINAPI | D128: VALVULA EM PLASTICO BRANCO PARA LAVATORIO 1 ", SEM UNHO, COM LADRAO | E128: un | F128: 4 | G128: 6.83 | H128: 6.83 | I128: 27.32 | J128: 0.001312896614
A129: 3.47 | B129: 00006156 | C129: SINAPI | D129: VALVULA EM PLASTICO BRANCO PARA TANQUE 1.1/4" X 1.1/2 ", SEM UNHO E SEM LADRAO | E129: un | F129: 2 | G129: 5.86 | H129: 5.86 | I129: 11.72 | J129: 0.0005632191917
A130: 3.48 | B130: 00001368 | C130: SINAPI | D130: CHUVEIRO COMUM EM PLASTICO BRANCO, COM CANO, 3 TEMPERATURAS, 5500 W (110/220 V) | E130: un | F130: 1 | G130: 95.95 | H130: 95.95 | I130: 95.95 | J130: 0.004610996711
A131: Total sem BDI | H131: =I82+I37+I10 -> 20808.95
A132: Total do BDI | H132: 0
A133: Total Geral | H133: =H131 -> 20808.95

Sheet Equipamentos
A1: MINISTÉRIO DO DESENVOLVIMENTO REGIONAL COMPANHIA DE DESENVOLVIMENTO DOS VALES DO SÃO FRANISCO E DO PARNAÍBA 4ª SUPERINTENDÊNCIA REGIONAL
A2: PLANILHA - COTAÇÕES
A3: EQUIPAMENTOS E FERRAMENTAS
A4: DESCRIÇÃO | C4: QUANT | D4: UNIDADE | E4: FREQUÊNCIA | F4: EMPRESA 1 VALOR UNIT (R$) | G4: EMPRESA 2 VALOR UNIT (R$) | H4: EMPRESA 3 VALOR UNIT (R$) | I4: VALOR MENSAL (R$)
A5: Mangueira de borracha cor preta, reforçada, lonada 3/4", 100 m de comprimento. | C5: 2 | D5: Un | E5: Semestral | F5: Mercado livre 599,00 | G5: Magalu 549,63 | H5: Americanas 610,00 | I5: =((599+549.63+610)/3)*2 -> 1172.42
A6: Rodo Limpa Vidros Extensor mínimo de 6 metros e Limpa Vidros Telescópico Cabo Extensor mínimo 6 metros | C6: 1 | D6: kit | E6: Anual | F6: Magalu 310,41 | G6: Shopee 292,95 | H6: Mercado livre 275,15 | I6: =(275.15+310.41+292.95)/3 -> 292.8366667
A7: Contentor de lixo 240l, contêiner De Lixo Com Rodas, material: Polietileno Reciclado | C7: 3 | D7: Un | E7: Anual | F7: Radotticar 332,00 | G7: Mercado livre 393,77 | H7: Bahia Lixeiras 499,00 | I7: =((332+393.77+499)/3)*3 -> 1224.77
A8: Enceradeira industrial, escova: 500 mm, motor elétrico: 1 HP, tensão: 110V ou 220V, capacidade operacional: até 3.200 m², dimensões (diâmetro x altura): 500 x 1100 mm | C8: 1 | D8: Un | E8: Única | F8: Magalu 2554,98 | G8: Mercado livre 2581,70 | H8: Palácio das Ferramentas 2286,90 | I8: =(2554.98+2581.7+2286.9)/3 -> 2474.526667
A9: Caixa de ferramentas mínimo 110 peças: 1 maleta plástica, 1 porta-chaves allen/hexagonais, 4 porta-bits, 1 alicate corte diagonal 6" em aço cromo vanádio, 1 alicate de bico meia-cana 6" em aço cromo vanádio, 1 alicate bomba d'água 10" em aço cromo vanádio, 2 chaves de fenda em aço cromo vanádio (5,0 mm x 75 mm (3/16" x 3") e 6,3 mm x 100 mm (1/4" x 4")), 2 chaves phillips em aço cromo vanádio (5,0 mm x 75 mm (n° 1 - 3/16" x 3") e 6,3 mm x 100 mm (n° 2 - 1/4" x 4")), 8 chaves allen/hexagonais em aço cromo vanádio (1,5 mm - 2 mm - 2,5 mm - 3 mm - 4 mm - 5 mm - 5,5 mm - 6 mm), 11 chaves combinadas (8 mm - 9 mm - 10 mm - 11 mm - 12 mm - 13 mm - 14 mm - 15 mm - 17 mm - 18 mm - 19 mm), 15 soquetes sextavados encaixe 1/2" em aço cromo vanádio (10 mm - 11 mm - 12 mm - 13 mm - 14 mm - 15 mm - 17 mm - 18 mm - 19 mm - 20 mm - 21 mm - 22 mm - 23 mm - 24 mm - 27 mm), 1 catraca encaixe 1/2", 1 extensão 5" em aço cromo vanádio encaixe 1/2", 1 junta universal em aço cromo vanádio encaixe 1/2", 1 cabo T em aço cromo vanádio encaixe 1/2" x 10”, 2 soquetes para vela de ignição em aço cromo vanádio (16 mm e 21 mm), 11 soquetes sextavados em aço cromo vanádio encaixe 1/4" (4 mm - 5 mm - 6 mm - 7 mm - 8 mm - 9 mm -10 mm - 11 mm - 12 mm - 13 mm - 14 mm), 1 catraca encaixe 1/4", 1 extensão em aço cromo vanádio 2" encaixe 1/4", 1 extensão em aço cromo vanádio 4" encaixe 1/4", 1 extensão flexível 6" em aço cromo vanádio encaixe 1/4", 1 junta universal em aço cromo vanádio encaixe 1/4", 1 cabo adaptador para bits com catraca em aço cromo vanádio encaixe 1/4", bits magnéticos em aço cromo vanádio encaixe 1/4": 7 fenda (3,5 mm (2 peças), 4 mm (2 peças), 5,5 mm, 6,5 mm e 8 mm), 8 phillips (n° 0, n° 1, n° 2 e n° 3 (2 peças cada)), 6 allen (2 mm - 3 mm - 4 mm - 5 mm - 6 mm - 7 mm), 3 quadrados (S1, S2 e S3), 7 hexalobular (T10, T15, T20, T25, T27, T30 e T40), 3 pozidrive (PZ1, PZ2 e PZ3), 4 três pontas (1, 2, 3 e 4) e 2 adaptadores. | C9: 2 | D9: Un | E9: Única | F9: Mercado livre 462,24 | G9: Loja do Mecanico 402,90 | H9: Amazon 566,96 | I9: =(462.24+402.9+566.96)/3 -> 477.3666667
A10: Roçadeira: Cilindrada 33,6 cm³; Potência 1.2 kW / 1,61 hp; Velocidade do motor mínima 11000 rpm e máxima 12000 rpm; Capacidade mínima do tanque de combustível 0,74l. Contendo os itens, Cinto Ergonômico, Carretel de Nylon e Faca de Corte. (Marca: Husqvarna ou similar) | C10: 1 | D10: Un | E10: Única | F10: Dutra Máquinas 2689,00 | G10: Mercado livre 2689,00 | H10: Magalu 2689,00 | I10: 2689
A11: Extratora portátil, Tensão: 127V, Potência Mínima: 1450W, Frequência: 50/60 Hz, Comprimento do Cabo Elétrico: 3 metros, Vácuo: 110 Mbar, Nível de Ruído: 78 dB(A), Níveis de Filtragem: 1, Tipo de Filtro: Espuma | C11: 1 | D11: Un | E11: Única | F11: Amazon 659,90 | G11: Ferreira Costa 599,90 | H11: Mercado livre 628,00 | I11: =(659.9+599.9+628)/3 -> 629.2666667
A12: VALOR TOTAL (R$) | I12: =SUM(I5:I11) -> 8960.186667

Sheet Totais
A1: MINISTÉRIO DO DESENVOLVIMENTO REGIONAL COMPANHIA DE DESENVOLVIMENTO DOS VALES DO SÃO FRANISCO E DO PARNAÍBA 4ª SUPERINTENDÊNCIA REGIONAL
A2: PLANILHA - COTAÇÕES
A3: RESUMO
A4: INSUMOS DIVERSOS | H4: VALOR
A5: Material | I5: =Materiais!H45 -> 69476.32667
A6: Insumo Téc. Manutenção | I6: ='Insumo Téc. Manutenção'!H133:J133 -> 20808.95 | J6: 0 | K6: 0
A7: Equipamento de Proteção Individual - EPI | I7: =EPI!J22 -> 5018.965333
A8: Uniforme | I8: =Uniforme!H23 -> 12509.17333
A9: Equipamentos e Máquinas- aquisição apenas no 1º ano de contrato | I9: =Equipamentos!I12 -> 8960.186667
A10: Total | I10: =SUM(I5:I9) -> 116773.602
A11: Total Mês | I11: =I10/12 -> 9731.1335
